bitfinex-derivatives/quotes_BTCF0:USTF0_20251025
["timestamp","ask_amount","ask_price","bid_price","bid_amount"]
[1761380419083,0.02145864,111650.0,111640.0,0.6364764]
[1761380425082,0.04475864,111650.0,111640.0,0.6364764]
[1761380425282,0.06779864,111650.0,111640.0,0.6364764]
[1761380425483,0.06779864,111650.0,111640.0,0.6404764]
[1761380425685,0.04475864,111650.0,111640.0,0.6404764]
[1761380425994,0.02145864,111650.0,111640.0,0.6404764]
[1761380428396,0.02145864,111650.0,111640.0,0.7871764]
[1761380441904,0.04251864,111650.0,111640.0,0.7871764]
[1761380442104,0.06478864,111650.0,111640.0,0.7871764]
[1761380444397,0.04251864,111650.0,111640.0,0.7871764]
[1761380445698,0.02145864,111650.0,111640.0,0.7871764]
[1761380446003,0.02145864,111650.0,111640.0,0.86591922]
[1761380446197,0.02145864,111650.0,111640.0,0.73881096]
[1761380446402,0.02145864,111650.0,111640.0,0.86591922]
[1761380446701,0.02145864,111650.0,111640.0,0.73881096]
[1761380447302,0.02145864,111650.0,111640.0,0.59211096]
[1761380447904,0.06744181,111670.0,111660.0,0.05687]
[1761380448101,0.08887124,111670.0,111660.0,0.18397826]
[1761380448305,0.06475943,111670.0,111660.0,0.18397826]
[1761380449304,0.06475943,111670.0,111660.0,0.31108652]
[1761380449807,0.06475943,111670.0,111660.0,0.18397826]
[1761380451702,0.06475943,111670.0,111660.0,0.05687]
[1761380452007,0.06475943,111670.0,111650.0,0.06209708]
[1761380452008,0.08887124,111670.0,111650.0,0.18397826]
[1761380453208,0.10887124,111670.0,111650.0,0.18397826]
[1761380455407,0.02411181,111660.0,111650.0,0.05687]
[1761380455618,0.06744181,111660.0,111650.0,0.18397826]
[1761380455916,0.08887124,111660.0,111650.0,0.18397826]
[1761380457313,0.08887124,111660.0,111650.0,0.18597826]
[1761380462517,0.06475943,111660.0,111650.0,0.18597826]
[1761380467224,0.06473535,111660.0,111650.0,0.18597826]
[1761380472739,0.06473535,111660.0,111650.0,0.18596991]
[1761380474538,0.06473535,111660.0,111650.0,0.31306982]
[1761380475639,0.06473535,111660.0,111650.0,0.18596991]
[1761380477140,0.37865535,111660.0,111650.0,0.18596991]
[1761380478242,0.40281625,111660.0,111650.0,0.18596991]
[1761380479546,0.40281625,111660.0,111650.0,0.31306982]
[1761380480743,0.08889625,111660.0,111650.0,0.31306982]
[1761380481042,0.40281625,111660.0,111650.0,0.31306982]
[1761380481540,0.04556625,111660.0,111650.0,0.40262622]
[1761380481747,0.0241609,111670.0,111660.0,0.0587]
[1761380482043,0.0685509,111670.0,111660.0,0.31289982]
[1761380482240,0.08997729,111670.0,111660.0,0.31289982]
[1761380482432,0.08997729,111670.0,111660.0,0.32185699]
[1761380482638,0.04558729,111670.0,111660.0,1.1385052]
[1761380482849,0.0241609,111690.0,111680.0,0.1482323]
[1761380483142,0.0241609,111690.0,111680.0,0.52953203]
[1761380483344,0.0685509,111700.0,111690.0,0.0587]
[1761380483547,0.40406373,111700.0,111690.0,0.31289982]
[1761380483937,0.06835373,111700.0,111690.0,0.31289982]
[1761380484246,0.38251373,111700.0,111690.0,0.31289982]
[1761380484448,0.58743021,111700.0,111690.0,0.31289982]
[1761380484850,0.25047021,111700.0,111690.0,0.31289982]
[1761380485044,0.34055283,111700.0,111690.0,0.31289982]
[1761380485843,0.02639283,111700.0,111690.0,0.31289982]
[1761380486151,0.34055283,111700.0,111690.0,0.31289982]
[1761380486451,0.36335283,111700.0,111690.0,0.31289982]
[1761380486651,0.04919283,111700.0,111690.0,0.31289982]
[1761380486849,0.36335283,111700.0,111690.0,0.31289982]
[1761380487050,0.04919283,111700.0,111690.0,0.31289982]
[1761380487251,0.38494283,111700.0,111690.0,0.31289982]
[1761380487554,0.38494283,111700.0,111690.0,0.18579991]
[1761380487849,0.36335283,111700.0,111690.0,0.18579991]
[1761380489548,0.34055283,111700.0,111690.0,0.31289982]
[1761380491553,0.36335283,111700.0,111690.0,0.31289982]
[1761380492054,0.36335283,111700.0,111690.0,0.18579991]
[1761380492454,0.38494283,111700.0,111690.0,0.18579991]
[1761380492946,0.52171274,111700.0,111690.0,0.14989991]
[1761380493152,0.52171274,111700.0,111690.0,0.17275991]
[1761380493352,0.51204274,111700.0,111690.0,0.18544991]
[1761380493949,0.02639283,111700.0,111690.0,0.05835]
[1761380494154,0.02639283,111700.0,111690.0,0.31254982]
[1761380494454,0.06999283,111700.0,111690.0,0.05835]
[1761380494654,0.06999283,111700.0,111690.0,0.18544991]
[1761380495154,0.06999283,111700.0,111690.0,0.05835]
[1761380495155,0.15950913,111700.0,111690.0,0.05835]
[1761380495359,0.15950913,111700.0,111690.0,0.18544991]
[1761380495547,0.15950913,111700.0,111690.0,0.05835]
[1761380495751,0.15950913,111700.0,111690.0,0.18544991]
[1761380502649,0.15950913,111700.0,111690.0,0.31254982]
[1761380506065,0.15950913,111700.0,111690.0,0.18544991]
[1761380506261,0.11590913,111700.0,111690.0,0.31254982]
[1761380506463,0.4714168,111730.0,111720.0,0.05672]
[1761380506760,0.49294053,111730.0,111720.0,0.05672]
[1761380506966,0.49294053,111730.0,111720.0,0.31091982]
[1761380507561,0.69285704,111730.0,111720.0,0.31091982]
[1761380508554,0.69985704,111730.0,111720.0,0.31091982]
[1761380509061,0.69985704,111730.0,111720.0,0.05672]
[1761380509259,0.69985704,111730.0,111720.0,0.31091982]
[1761380509662,0.07513464,111750.0,111740.0,0.01269]
[1761380509970,0.06512797,111750.0,111740.0,0.31091982]
[1761380510670,0.06512797,111750.0,111740.0,0.43801973]
[1761380510873,0.06512797,111750.0,111740.0,0.31091982]
[1761380518769,0.06512797,111750.0,111740.0,0.18381991]
[1761380518961,0.19222788,111750.0,111740.0,0.18381991]
[1761380519271,0.06512797,111750.0,111740.0,0.18381991]
[1761380519474,0.19222788,111750.0,111740.0,0.18381991]
[1761380520264,0.06512797,111750.0,111740.0,0.18381991]
[1761380520463,0.19222788,111750.0,111740.0,0.18381991]
[1761380521172,0.06512797,111750.0,111740.0,0.18381991]
[1761380521373,0.19222788,111750.0,111740.0,0.18381991]
[1761380522282,0.06512797,111750.0,111740.0,0.18381991]
[1761380523470,0.06512797,111750.0,111740.0,0.05672]
[1761380523663,0.06512797,111750.0,111740.0,0.18381991]
[1761380523863,0.06512797,111750.0,111740.0,0.31091982]
[1761380525477,0.06512797,111750.0,111740.0,0.18381991]
[1761380530475,0.06512797,111750.0,111740.0,0.31091982]
[1761380532083,0.37960797,111750.0,111740.0,0.31091982]
[1761380532684,0.37960797,111750.0,111740.0,0.18362136]
[1761380537995,0.04275797,111750.0,111740.0,0.27310556]
[1761380538197,0.02152797,111750.0,111740.0,0.18362136]
[1761380538696,0.24104797,111750.0,111740.0,0.18362136]
[1761380538899,0.26319797,111750.0,111740.0,0.27310536]
[1761380539801,0.29541064,111750.0,111740.0,0.27310536]
[1761380540498,0.02152797,111750.0,111740.0,0.40000672]
[1761380541001,0.02152797,111750.0,111740.0,0.28612481]
[1761380542099,0.02152797,111750.0,111740.0,0.19664081]
[1761380542894,0.02152797,111750.0,111740.0,0.19964081]
[1761380549704,0.29972267,111760.0,111750.0,0.0573]
[1761380549906,0.29972267,111760.0,111750.0,0.19722081]
[1761380550716,0.26751,111760.0,111750.0,0.19722081]
[1761380551006,0.26751,111760.0,111750.0,0.19822081]
[1761380552008,0.26751,111760.0,111750.0,0.20712494]
[1761380554111,0.26751,111760.0,111750.0,0.20748775]
[1761380558304,0.26751,111760.0,111750.0,0.19858362]
[1761380558503,0.26751,111760.0,111750.0,0.07168226]
[1761380558704,0.26751,111760.0,111750.0,0.19858362]
[1761380559215,0.29972267,111760.0,111750.0,0.19858362]
[1761380560510,0.26751,111760.0,111750.0,0.19858362]
[1761380564414,0.29972267,111760.0,111750.0,0.19858362]
[1761380566516,0.07600267,111760.0,111750.0,0.19858362]
[1761380569716,0.10016671,111760.0,111750.0,0.19858362]
[1761380572315,0.09600267,111760.0,111750.0,0.07168226]
[1761380572624,0.14442273,111760.0,111750.0,0.05895226]
[1761380572814,0.14442273,111760.0,111750.0,0.04557]
[1761380573521,0.14442273,111760.0,111750.0,0.0585]
[1761380574114,0.12442273,111760.0,111750.0,0.0585]
[1761380574418,0.12442273,111760.0,111750.0,0.18540136]
[1761380574621,0.25290403,111760.0,111750.0,0.001]
[1761380574822,0.25290403,111760.0,111750.0,0.02353]
[1761380575212,0.12600267,111760.0,111750.0,0.04512]
[1761380578926,0.14221006,111760.0,111750.0,0.04512]
[1761380579628,0.74221006,111760.0,111750.0,0.04512]
[1761380582119,0.77440588,111760.0,111750.0,0.04512]
[1761380582829,0.77490588,111760.0,111750.0,0.04512]
[1761380594653,0.90182242,111760.0,111750.0,0.17203654]
[1761380595855,0.77490588,111760.0,111750.0,0.17203654]
[1761380596056,0.90182242,111760.0,111750.0,0.17203654]
[1761380596857,0.30182242,111760.0,111750.0,0.17203654]
[1761380597061,0.30182242,111760.0,111750.0,0.04512]
[1761380597355,0.30182242,111760.0,111750.0,0.17203654]
[1761380597656,0.9803189,111760.0,111750.0,0.001]
[1761380597856,0.99654314,111760.0,111750.0,0.001]
[1761380600049,0.2196266,111760.0,111750.0,0.18516654]
[1761380600254,0.5337866,111760.0,111750.0,0.18516654]
[1761380602267,0.5175836,111760.0,111750.0,0.18516654]
[1761380602453,0.2034236,111760.0,111750.0,0.18516654]
[1761380602761,0.39066706,111760.0,111750.0,0.19829413]
[1761380603559,0.07806706,111760.0,111750.0,0.32521067]
[1761380603765,0.39230706,111760.0,111750.0,0.19829413]
[1761380604569,0.41646689,111760.0,111750.0,0.19829413]
[1761380605265,0.56764366,111760.0,111750.0,0.19829413]
[1761380605658,0.62654366,111760.0,111750.0,0.05793759]
[1761380605859,0.62654366,111760.0,111750.0,0.03587759]
[1761380606163,0.62654366,111760.0,111750.0,0.05793759]
[1761380606550,0.62654366,111760.0,111750.0,0.03587759]
[1761380606765,0.70503703,111760.0,111750.0,0.01412759]
[1761380606968,0.70503703,111760.0,111750.0,0.03587759]
[1761380607165,0.57812049,111760.0,111750.0,0.03587759]
[1761380607365,0.57812049,111760.0,111750.0,0.05793759]
[1761380609065,0.51922049,111760.0,111750.0,0.19829413]
[1761380609253,0.39230395,111760.0,111750.0,0.19829413]
[1761380609867,0.39230395,111760.0,111750.0,0.07137759]
[1761380610068,0.39230395,111760.0,111750.0,0.19829413]
[1761380611166,0.07806395,111760.0,111750.0,0.19824086]
[1761380611966,0.39258395,111760.0,111750.0,0.19824086]
[1761380612364,0.51950049,111760.0,111750.0,0.19824086]
[1761380615165,0.56792055,111760.0,111750.0,0.19824086]
[1761380617581,0.25340055,111760.0,111750.0,0.19824086]
[1761380618073,0.56788055,111760.0,111750.0,0.19824086]
[1761380618775,0.44096401,111760.0,111750.0,0.19824086]
[1761380618973,0.56788055,111760.0,111750.0,0.19824086]
[1761380619475,0.44096401,111760.0,111750.0,0.19824086]
[1761380619775,0.12648401,111760.0,111750.0,0.19824086]
[1761380619966,0.44096401,111760.0,111750.0,0.19824086]
[1761380622771,0.12648401,111760.0,111750.0,0.19824086]
[1761380623070,0.44092401,111760.0,111750.0,0.19824086]
[1761380625669,0.44088401,111760.0,111750.0,0.19824086]
[1761380633289,0.40867006,111760.0,111750.0,0.19824086]
[1761380634188,0.5355866,111760.0,111750.0,0.19824086]
[1761380634391,0.56780994,111760.0,111750.0,0.19824086]
[1761380634592,0.4408934,111760.0,111750.0,0.19824086]
[1761380638390,0.4408934,111760.0,111750.0,0.07132432]
[1761380638586,0.4408934,111760.0,111750.0,0.19824086]
[1761380639691,0.4408934,111760.0,111750.0,0.07132432]
[1761380639992,0.4408934,111760.0,111750.0,0.19824086]
[1761380641786,0.4408934,111760.0,111750.0,0.07132432]
[1761380641993,0.4408934,111760.0,111750.0,0.19824086]
[1761380643794,0.40867006,111760.0,111750.0,0.19824086]
[1761380646793,0.40867006,111760.0,111750.0,0.19818592]
[1761380651997,0.40867006,111760.0,111750.0,0.18516654]
[1761380652300,0.40867006,111760.0,111750.0,0.19818939]
[1761380653702,0.40867006,111760.0,111750.0,0.07127285]
[1761380653897,0.40867006,111760.0,111750.0,0.19818939]
[1761380654704,0.40867006,111760.0,111750.0,0.1981708]
[1761380661506,0.09427006,111760.0,111750.0,0.1981708]
[1761380661700,0.40839006,111760.0,111750.0,0.1981708]
[1761380662700,0.40839006,111760.0,111750.0,0.18514795]
[1761380665008,0.44061906,111760.0,111750.0,0.18514795]
[1761380666309,0.44061906,111760.0,111750.0,0.05825]
[1761380668708,0.392199,111760.0,111750.0,0.05825]
[1761380669109,0.392199,111760.0,111750.0,0.18514795]
[1761380673012,0.078079,111760.0,111750.0,0.18514795]
[1761380673210,0.392159,111760.0,111750.0,0.18514795]
[1761380674513,0.40835006,111760.0,111750.0,0.18514795]
[1761380675103,0.44055572,111760.0,111750.0,0.18514795]
[1761380678713,0.12647572,111760.0,111750.0,0.18514795]
[1761380678912,0.44051572,111760.0,111750.0,0.18514795]
[1761380680305,0.39209566,111760.0,111750.0,0.18514795]
[1761380681916,0.07805566,111760.0,111750.0,0.18514795]
[1761380682114,0.07805566,111760.0,111750.0,0.3120459]
[1761380682420,0.02465871,111760.0,111750.0,0.4336181]
[1761380683821,0.0005,111760.0,111750.0,1.0336181]
[1761380684211,0.0005,111760.0,111750.0,0.9441418]
[1761380686621,0.0005,111760.0,111750.0,1.0336178]
[1761380688622,0.0005,111760.0,111750.0,1.3477778]
[1761380691620,0.0005,111760.0,111750.0,0.79608488]
[1761380692815,0.0005,111760.0,111750.0,0.79508488]
[1761380693026,0.0005,111760.0,111750.0,0.76498898]
[1761380693327,0.0005,111760.0,111750.0,0.79711954]
[1761380694425,0.0005,111760.0,111750.0,0.76498898]
[1761380695824,0.10082437,111790.0,111780.0,0.05911]
[1761380696024,0.10082437,111790.0,111780.0,0.18600795]
[1761380696025,0.19082437,111790.0,111780.0,0.18600795]
[1761380696627,0.19082437,111790.0,111780.0,0.04582]
[1761380696822,0.19082437,111790.0,111780.0,0.17271795]
[1761380697032,0.19382437,111790.0,111780.0,0.18600795]
[1761380699325,0.16966566,111790.0,111780.0,0.18600795]
[1761380699830,0.16966566,111790.0,111770.0,0.18510795]
[1761380700018,0.06929893,111780.0,111770.0,0.18510795]
[1761380700216,0.06929893,111780.0,111770.0,0.19398787]
[1761380700830,0.06929893,111780.0,111770.0,0.18510795]
[1761380701222,0.38341893,111780.0,111770.0,0.18510795]
[1761380702231,0.38441893,111780.0,111770.0,0.18510795]
[1761380703328,0.38441893,111780.0,111770.0,0.05821]
[1761380703530,0.38441893,111780.0,111770.0,0.18510795]
[1761380704330,0.38441893,111780.0,111770.0,0.05821]
[1761380704529,0.38441893,111780.0,111770.0,0.18510795]
[1761380708023,0.41662459,111780.0,111770.0,0.18510795]
[1761380716744,0.10250459,111780.0,111770.0,0.31186328]
[1761380716939,0.41650459,111780.0,111770.0,0.31186328]
[1761380719451,0.41650459,111780.0,111770.0,0.05821]
[1761380719642,0.41650459,111780.0,111770.0,0.31186328]
[1761380721055,0.07840566,111780.0,111770.0,0.40132498]
[1761380721348,0.38431273,111780.0,111770.0,0.40132498]
[1761380721549,0.38431273,111780.0,111770.0,0.43344384]
[1761380722249,0.38331273,111780.0,111770.0,0.43344384]
[1761380722452,0.38331273,111780.0,111770.0,0.43444384]
[1761380723149,0.38331273,111780.0,111770.0,0.44795085]
[1761380723347,0.06935273,111780.0,111770.0,0.44795085]
[1761380723748,0.02415273,111780.0,111770.0,0.57477749]
[1761380724055,0.54636239,111790.0,111780.0,0.05908]
[1761380724256,0.23240239,111790.0,111780.0,0.45306693]
[1761380725151,0.20019673,111790.0,111780.0,0.32624029]
[1761380725346,0.23240239,111790.0,111780.0,0.32624029]
[1761380727153,0.23240239,111790.0,111780.0,0.07258701]
[1761380727454,0.23240239,111790.0,111780.0,0.32624029]
[1761380728354,0.20019673,111790.0,111780.0,0.32624029]
[1761380728754,0.20019673,111790.0,111780.0,0.07258701]
[1761380728954,0.20019673,111790.0,111780.0,0.32624029]
[1761380731456,0.20019673,111790.0,111780.0,0.41569429]
[1761380731656,0.20019673,111790.0,111780.0,0.45306693]
[1761380731856,0.20019673,111790.0,111780.0,0.32624029]
[1761380732359,0.20019673,111790.0,111780.0,0.45306693]
[1761380732857,0.20019673,111790.0,111780.0,0.32624029]
[1761380736260,0.20019673,111790.0,111780.0,0.07258701]
[1761380736461,0.20019673,111790.0,111780.0,0.32624029]
[1761380740758,0.20986673,111790.0,111780.0,0.31247029]
[1761380742458,0.20984421,111790.0,111780.0,0.31247029]
[1761380742661,0.20984421,111790.0,111780.0,0.03624701]
[1761380742862,0.20984421,111790.0,111780.0,0.31271029]
[1761380743167,0.24204987,111790.0,111780.0,0.31271029]
[1761380745368,0.24204987,111790.0,111780.0,0.05905701]
[1761380745668,0.24204987,111790.0,111780.0,0.31271029]
[1761380746365,0.24204987,111790.0,111780.0,0.32586029]
[1761380746764,0.23237987,111790.0,111780.0,0.32586029]
[1761380747466,0.20824966,111790.0,111780.0,0.32586029]
[1761380747675,0.23238963,111790.0,111780.0,0.32586029]
[1761380748171,0.20824966,111790.0,111780.0,0.32586029]
[1761380750282,0.25666972,111790.0,111780.0,0.32586029]
[1761380754371,0.20824966,111790.0,111780.0,0.32586029]
[1761380755673,0.20824966,111790.0,111780.0,0.07220701]
[1761380755877,0.20824966,111790.0,111780.0,0.32586029]
[1761380757073,0.3350763,111790.0,111780.0,0.19903365]
[1761380757269,0.04564,111770.0,111760.0,0.2168555]
[1761380757460,0.51854657,111770.0,111760.0,0.04462]
[1761380757665,0.51854657,111770.0,111750.0,0.05806]
[1761380757666,0.58586663,111770.0,111750.0,0.05806]
[1761380757865,0.22882073,111760.0,111750.0,0.18488664]
[1761380758174,0.06979416,111760.0,111750.0,0.18488664]
[1761380758866,0.06979416,111760.0,111750.0,0.05806]
[1761380759066,0.06979416,111760.0,111750.0,0.18988664]
[1761380759676,0.06979416,111760.0,111750.0,0.18788664]
[1761380761379,0.38375416,111760.0,111750.0,0.18788664]
[1761380762576,0.06979416,111760.0,111750.0,0.18788664]
[1761380762880,0.38375416,111760.0,111750.0,0.18788664]
[1761380763177,0.06979416,111760.0,111750.0,0.18788664]
[1761380763377,0.38375416,111760.0,111750.0,0.18788664]
[1761380763680,0.06979416,111760.0,111750.0,0.18788664]
[1761380763877,0.38375416,111760.0,111750.0,0.18788664]
[1761380764281,0.3596,111760.0,111750.0,0.18788664]
[1761380764880,0.04564,111760.0,111750.0,0.18788664]
[1761380765070,0.3596,111760.0,111750.0,0.18788664]
[1761380775980,0.3596,111760.0,111750.0,0.06106]
[1761380776185,0.5105808,111760.0,111750.0,0.18788664]
[1761380776482,0.69927737,111760.0,111740.0,0.02213]
[1761380776679,0.19459288,111750.0,111730.0,0.18343664]
[1761380776986,0.61942328,111740.0,111720.0,0.18343664]
[1761380777282,0.50259664,111740.0,111720.0,0.05661]
[1761380777476,0.52668288,111740.0,111720.0,0.05661]
[1761380777677,0.52668288,111740.0,111720.0,0.18343664]
[1761380778288,0.52668288,111740.0,111730.0,0.04646]
[1761380778885,0.39985624,111740.0,111730.0,0.04346]
[1761380779389,0.39985624,111740.0,111730.0,0.04446]
[1761380780486,0.40887808,111740.0,111730.0,0.04446]
[1761380781189,0.53585097,111740.0,111730.0,0.02313]
[1761380781378,0.53585097,111740.0,111730.0,0.001]
[1761380781574,0.53585097,111740.0,111730.0,0.02313]
[1761380781775,0.53585097,111740.0,111730.0,0.04446]
[1761380781987,0.52682913,111740.0,111730.0,0.04446]
[1761380782587,0.39985624,111740.0,111730.0,0.04446]
[1761380786092,0.99985624,111740.0,111730.0,0.04446]
[1761380787189,1.03205617,111740.0,111730.0,0.04446]
[1761380788794,1.02408617,111740.0,111730.0,0.05738]
[1761380790591,0.99188624,111740.0,111730.0,0.05738]
[1761380791098,0.67776624,111740.0,111730.0,0.05738]
[1761380791300,0.99188624,111740.0,111730.0,0.05738]
[1761380794703,1.02408617,111740.0,111730.0,0.05738]
[1761380795097,0.99188624,111740.0,111730.0,0.05738]
[1761380799407,1.02408617,111740.0,111730.0,0.05738]
[1761380802314,0.99999993,111740.0,111730.0,0.05738]
[1761380803012,0.99995993,111740.0,111730.0,0.05738]
[1761380805212,0.99995993,111740.0,111730.0,0.04446]
[1761380806218,1.01618006,111740.0,111730.0,0.04446]
[1761380808422,1.0484183,111740.0,111730.0,0.04446]
[1761380810123,1.01618006,111740.0,111730.0,0.04446]
[1761380811022,0.70210006,111740.0,111730.0,0.04446]
[1761380811222,1.01614006,111740.0,111730.0,0.04446]
[1761380812525,1.04837836,111740.0,111730.0,0.04446]
[1761380812710,1.01614006,111740.0,111730.0,0.04446]
[1761380814124,0.70210006,111740.0,111730.0,0.04446]
[1761380814319,1.01614006,111740.0,111730.0,0.04446]
[1761380815025,1.04837842,111740.0,111730.0,0.04446]
[1761380815824,1.04837842,111740.0,111730.0,0.05754]
[1761380816619,1.01614006,111740.0,111730.0,0.05754]
[1761380820522,0.70210006,111740.0,111730.0,0.05754]
[1761380820829,1.01614006,111740.0,111730.0,0.05754]
[1761380821326,1.01614006,111740.0,111730.0,0.04446]
[1761380822126,1.01614006,111740.0,111730.0,0.05763]
[1761380822328,0.70210006,111740.0,111730.0,0.05763]
[1761380822521,1.01614006,111740.0,111730.0,0.05763]
[1761380822723,1.01614006,111740.0,111730.0,0.04446]
[1761380823229,0.70210006,111740.0,111730.0,0.04446]
[1761380823533,1.01614006,111740.0,111730.0,0.04446]
[1761380824422,0.70210006,111740.0,111730.0,0.04446]
[1761380824624,1.01614006,111740.0,111730.0,0.04446]
[1761380825730,0.575348,111740.0,111730.0,0.001]
[1761380825929,0.54311295,111740.0,111730.0,0.001]
[1761380826932,0.49469289,111740.0,111730.0,0.001]
[1761380828230,0.0543,111710.0,111700.0,0.04483215]
[1761380828419,0.4367088,111710.0,111700.0,0.04483215]
[1761380828727,0.43926013,111710.0,111700.0,0.18497504]
[1761380829233,0.39093133,111710.0,111700.0,0.18497504]
[1761380830434,0.40955436,111710.0,111700.0,0.17680504]
[1761380830634,0.40955436,111710.0,111700.0,0.04983215]
[1761380831326,0.43367769,111710.0,111700.0,0.04983215]
[1761380832036,0.43955436,111710.0,111700.0,0.04983215]
[1761380832236,0.46366929,111710.0,111700.0,0.04983215]
[1761380832939,0.59064218,111710.0,111700.0,0.04983215]
[1761380833232,0.46366929,111710.0,111700.0,0.04983215]
[1761380833431,0.59064218,111710.0,111700.0,0.02687215]
[1761380833636,0.46366929,111710.0,111700.0,0.04983215]
[1761380833939,0.56652725,111710.0,111700.0,0.00508215]
[1761380835827,0.56652725,111710.0,111700.0,0.04983215]
[1761380835828,0.14956909,111710.0,111700.0,0.04983215]
[1761380836034,0.46380909,111710.0,111700.0,0.04983215]
[1761380837238,0.09872473,111710.0,111700.0,0.04983215]
[1761380837532,0.41300473,111710.0,111700.0,0.18997504]
[1761380837734,0.38300473,111710.0,111700.0,0.18997504]
[1761380838724,0.38300473,111710.0,111700.0,0.19001539]
[1761380843145,0.38300473,111710.0,111700.0,0.31702863]
[1761380853250,0.41522606,111710.0,111700.0,0.31702863]
[1761380855354,0.39113133,111710.0,111700.0,0.31702863]
[1761380857454,0.43946013,111710.0,111700.0,0.31702863]
[1761380861458,0.37067388,111710.0,111700.0,0.44404187]
[1761380861655,0.02417255,111710.0,111700.0,0.34914749]
[1761380863247,0.5421061,111720.0,111710.0,0.0127]
[1761380863453,0.5421061,111720.0,111710.0,0.18444324]
[1761380864345,0.50988477,111720.0,111710.0,0.18444324]
[1761380864652,0.50988477,111720.0,111710.0,0.18744324]
[1761380864854,0.48571222,111720.0,111710.0,0.18744324]
[1761380865055,0.50986503,111720.0,111710.0,0.18744324]
[1761380867557,0.50986503,111720.0,111710.0,0.19653543]
[1761380872761,0.50986503,111720.0,111710.0,0.20982617]
[1761380875663,0.50986503,111720.0,111710.0,0.33683941]
[1761380878364,0.03222133,111740.0,111710.0,0.42634681]
[1761380878570,0.03222133,111750.0,111740.0,0.05726]
[1761380878759,0.07662133,111760.0,111750.0,0.05774]
[1761380878962,0.07662133,111760.0,111750.0,0.19804398]
[1761380879162,0.3598,111760.0,111750.0,0.19804398]
[1761380880172,0.3628,111760.0,111750.0,0.19804398]
[1761380881361,0.3598,111760.0,111750.0,0.19804398]
[1761380882973,0.36947,111760.0,111750.0,0.16222398]
[1761380883172,0.49648324,111760.0,111750.0,0.14030398]
[1761380883470,0.49648324,111760.0,111750.0,0.18413398]
[1761380884768,0.49648324,111760.0,111750.0,0.05712074]
[1761380884968,0.49648324,111760.0,111750.0,0.18413398]
[1761380885869,0.52648324,111760.0,111750.0,0.03520074]
[1761380886070,0.52648324,111760.0,111750.0,0.16221398]
[1761380887868,0.52648324,111760.0,111750.0,0.03520074]
[1761380888072,0.36947,111760.0,111750.0,0.05712074]
[1761380888266,0.49648324,111760.0,111750.0,0.05712074]
[1761380888661,0.49648324,111760.0,111750.0,0.18413398]
[1761380889666,0.49648324,111760.0,111750.0,0.18478323]
[1761380890473,0.51648324,111760.0,111750.0,0.18478323]
[1761380890678,0.51648324,111760.0,111750.0,0.05776999]
[1761380891075,0.51648324,111760.0,111750.0,0.03584999]
[1761380892576,0.51648324,111760.0,111750.0,0.05776999]
[1761380892772,0.38947,111760.0,111750.0,0.05776999]
[1761380892979,0.51648324,111760.0,111750.0,0.05776999]
[1761380894779,0.50681324,111760.0,111750.0,0.19747323]
[1761380899276,0.3798,111760.0,111750.0,0.19747323]
[1761380899478,0.50681324,111760.0,111750.0,0.19747323]
[1761380900180,0.50681324,111760.0,111750.0,0.18353324]
[1761380900379,0.50681324,111760.0,111750.0,0.19720144]
[1761380900882,0.3798,111760.0,111750.0,0.0701882]
[1761380904183,0.3598,111760.0,111750.0,0.0701882]
[1761380906374,0.39202133,111760.0,111750.0,0.0701882]
[1761380907075,0.39202133,111760.0,111750.0,0.19709519]
[1761380908179,0.4081288,111760.0,111750.0,0.19709519]
[1761380910485,0.39202413,111760.0,111750.0,0.22113564]
[1761380910986,0.39202413,111760.0,111750.0,0.22996227]
[1761380914085,0.39150413,111760.0,111750.0,0.22996227]
[1761380921894,0.07662413,111760.0,111750.0,0.22996227]
[1761380922090,0.39142413,111760.0,111750.0,0.22996227]
[1761380922290,0.39142413,111760.0,111750.0,0.22113564]
[1761380922895,0.39142413,111760.0,111750.0,0.19709519]
[1761380923993,0.39142413,111760.0,111750.0,0.22113564]
[1761380924893,0.39142413,111760.0,111750.0,0.23014679]
[1761380925095,0.39142413,111760.0,111750.0,0.22113564]
[1761380929200,0.39142413,111760.0,111750.0,0.23022484]
[1761380929999,0.39142413,111760.0,111750.0,0.22113564]
[1761380931902,0.39142413,111760.0,111750.0,0.23020133]
[1761380932100,0.39142413,111760.0,111750.0,0.21653313]
[1761380932401,0.39142413,111760.0,111750.0,0.22994623]
[1761380933906,0.39142413,111760.0,111750.0,0.20590578]
[1761380934602,0.39142413,111760.0,111750.0,0.22994623]
[1761380935606,0.39142413,111760.0,111750.0,0.22088054]
[1761380938602,0.39142413,111760.0,111750.0,0.09397355]
[1761380938802,0.39142413,111760.0,111750.0,0.22088054]
[1761380941004,0.39142413,111760.0,111750.0,0.2209584]
[1761380941311,0.39142413,111760.0,111750.0,0.22078293]
[1761380944321,0.38337095,111760.0,111750.0,0.06975763]
[1761380944622,0.38337095,111760.0,111750.0,0.19666462]
[1761380945618,0.38337095,111760.0,111750.0,0.06975763]
[1761380948222,0.56443579,111760.0,111750.0,0.01323763]
[1761380948529,0.05375,111740.0,111730.0,0.02412565]
[1761380948827,0.42049292,111740.0,111730.0,0.04745565]
[1761380949025,0.42049292,111740.0,111730.0,0.02333]
[1761380949223,0.42049292,111740.0,111730.0,0.04597]
[1761380949626,0.54739991,111740.0,111730.0,0.04597]
[1761380950327,0.5806286,111740.0,111730.0,0.04897]
[1761380950626,0.45372161,111740.0,111730.0,0.04897]
[1761380951726,0.44463422,111740.0,111730.0,0.04897]
[1761380952729,0.4124113,111740.0,111730.0,0.04897]
[1761380954730,0.4124113,111740.0,111730.0,0.04597]
[1761380957828,0.4124113,111740.0,111730.0,0.05923]
[1761380958129,0.3835113,111740.0,111730.0,0.05923]
[1761380960430,0.3835113,111740.0,111730.0,0.072198]
[1761380962832,0.3835113,111740.0,111730.0,0.18617699]
[1761380963434,0.3835113,111740.0,111730.0,0.05923]
[1761380963732,0.3835113,111740.0,111730.0,0.18617699]
[1761380964031,0.0689913,111740.0,111730.0,0.18617699]
[1761380964629,0.3834313,111740.0,111730.0,0.18617699]
[1761380965041,0.0689913,111740.0,111730.0,0.18617699]
[1761380965228,0.35929,111740.0,111730.0,0.18617699]
[1761380966434,0.35929,111740.0,111730.0,0.18817699]
[1761380969740,0.35929,111740.0,111730.0,0.21230264]
[1761380977343,0.35929,111740.0,111730.0,0.2444215]
[1761380980048,0.35929,111740.0,111730.0,0.11747451]
[1761380980346,0.35929,111740.0,111730.0,0.2444215]
[1761380980548,0.35921,111740.0,111730.0,0.2444215]
[1761380994364,0.3833513,111740.0,111730.0,0.2444215]
[1761380994753,0.35921,111740.0,111730.0,0.2444215]
[1761380996259,0.3833513,111740.0,111730.0,0.22029585]
[1761380996857,0.3833513,111740.0,111730.0,0.24440227]
[1761380997160,0.3833513,111740.0,111730.0,0.22029585]
[1761380998061,0.3833513,111740.0,111730.0,0.24440382]
[1761380998252,0.3833513,111740.0,111730.0,0.22029585]
[1761381012965,0.3833513,111740.0,111730.0,0.2444039]